Department family,Entity,Date,Expense type,Expense area,Supplier,Transaction number,Amount
Department of Health,University Hospitals of Morecambe Bay NHS Foundation Trust,30-Dec-15,Rates,Estates & Facilities,BOROUGH OF BARROW-IN-FURNESS,1129483,56284
Department of Health,University Hospitals of Morecambe Bay NHS Foundation Trust,30-Dec-15,Agency Medical Staff - Management Costs,Trust Wide,HB RETINUE LTD,1129835,33474.34
Department of Health,University Hospitals of Morecambe Bay NHS Foundation Trust,30-Dec-15,Agency Midwives,Womens & Childrens,HB RETINUE LTD,1129837,57723.92
Department of Health,University Hospitals of Morecambe Bay NHS Foundation Trust,30-Dec-15,Agency ODPs,Theatres,HB RETINUE LTD,1129838,23700.92
Department of Health,University Hospitals of Morecambe Bay NHS Foundation Trust,30-Dec-15,Rates,Estates & Facilities,LANCASTER CITY COUNCIL,1129479,46424
Department of Health,University Hospitals of Morecambe Bay NHS Foundation Trust,30-Dec-15,Rates,Estates & Facilities,SOUTH LAKELAND DISTRICT COUNCIL,1129484,36359
Department of Health,University Hospitals of Morecambe Bay NHS Foundation Trust,06-Jan-16,MRI Scans (Mobile Unit),Radiology,ALLIANCE MEDICAL LTD,1125122,51994.8
Department of Health,University Hospitals of Morecambe Bay NHS Foundation Trust,06-Jan-16,Hardware/Software,Information Technology,BLOCK SOLUTIONS LTD,1124390,26594.96
Department of Health,University Hospitals of Morecambe Bay NHS Foundation Trust,06-Jan-16,Managed Service Contract,Corporate,CARVETI PARTNERSHIP LTD,1131081,77885
Department of Health,University Hospitals of Morecambe Bay NHS Foundation Trust,06-Jan-16,Orthotics Service,Trust Wide,CRISPIN ORTHOTICS LTD,1123194,28678.86
Department of Health,University Hospitals of Morecambe Bay NHS Foundation Trust,06-Jan-16,Interim Deputy Chief Operating Officer,Trust Board,GATENBYSANDERSON LIMITED,1124392,26400
Department of Health,University Hospitals of Morecambe Bay NHS Foundation Trust,06-Jan-16,External Audit Fees,Trust Board,GRANT THORNTON UK LLP,1124226,26500
Department of Health,University Hospitals of Morecambe Bay NHS Foundation Trust,06-Jan-16,Agency Medical Staff - Management Costs,Trust Wide,HB RETINUE LTD,1130175,43445
Department of Health,University Hospitals of Morecambe Bay NHS Foundation Trust,06-Jan-16,Agency Medical Staff - Management Costs,Trust Wide,HB RETINUE LTD,1130176,37777
Department of Health,University Hospitals of Morecambe Bay NHS Foundation Trust,06-Jan-16,Pathology Testing Contract,Pathology,LANCASHIRE TEACHING HOSPITALS NHS FOUNDATION TRUST,1128961,25366.32
Department of Health,University Hospitals of Morecambe Bay NHS Foundation Trust,06-Jan-16,Agency Medical Staff ,Ophthalmology,MINOR OPS LIMITED,1117126,27748.8
Department of Health,University Hospitals of Morecambe Bay NHS Foundation Trust,06-Jan-16,Contrat Support,Capital Services,NHS SHARED BUSINESS SERVICE LTD,1125512,45000
Department of Health,University Hospitals of Morecambe Bay NHS Foundation Trust,06-Jan-16,Payroll Services,Trust Wide,NHS SHARED BUSINESS SERVICE LTD,1128442,23622
Department of Health,University Hospitals of Morecambe Bay NHS Foundation Trust,06-Jan-16,NHS Product Sales,Trust Wide,NHS SUPPLY CHAIN,1128706,184176.55
Department of Health,University Hospitals of Morecambe Bay NHS Foundation Trust,06-Jan-16,NHS Product Sales,Trust Wide,NHS SUPPLY CHAIN,1129757,105616
Department of Health,University Hospitals of Morecambe Bay NHS Foundation Trust,06-Jan-16,Maintenance Contract,Cardiac Centre,PHILIPS HEALTHCARE,1124239,95992.8
Department of Health,University Hospitals of Morecambe Bay NHS Foundation Trust,06-Jan-16,Drugs,Pharmacy,ROCHE PRODUCTS LTD,1124022,38559.22
Department of Health,University Hospitals of Morecambe Bay NHS Foundation Trust,13-Jan-16,Managed Service Contract,Pathology,BECKMAN COULTER UK LTD,1126851,154325.1
Department of Health,University Hospitals of Morecambe Bay NHS Foundation Trust,13-Jan-16,Speech & Language Therapy Services,Core Clinical,CUMBRIA PARTNERSHIP NHS TRUST,1131751,30800.68
Department of Health,University Hospitals of Morecambe Bay NHS Foundation Trust,13-Jan-16,Drugs,Pharmacy,ELI LILLY & COMPANY LTD,1125966,32640
Department of Health,University Hospitals of Morecambe Bay NHS Foundation Trust,13-Jan-16,Interim Deputy Chief Operating Officer,Trust Board,GATENBYSANDERSON LIMITED,1128022,29040
Department of Health,University Hospitals of Morecambe Bay NHS Foundation Trust,13-Jan-16,Agency Midwives,Womens & Childrens,HB RETINUE LTD,1132797,55011.74
Department of Health,University Hospitals of Morecambe Bay NHS Foundation Trust,13-Jan-16,Agency ODPs,Theatres,HB RETINUE LTD,1132798,22022.04
Department of Health,University Hospitals of Morecambe Bay NHS Foundation Trust,13-Jan-16,Pathology Testing Contract,Pathology,LANCASHIRE TEACHING HOSPITALS NHS FOUNDATION TRUST,1123401,29102.42
Department of Health,University Hospitals of Morecambe Bay NHS Foundation Trust,13-Jan-16,Blood & Blood components contract,Core Clinical,NHS BLOOD & TRANSPLANT,1130753,41480.33
Department of Health,University Hospitals of Morecambe Bay NHS Foundation Trust,13-Jan-16,Blood & Blood components contract,Core Clinical,NHS BLOOD & TRANSPLANT,1130754,58706.75
Department of Health,University Hospitals of Morecambe Bay NHS Foundation Trust,13-Jan-16,Prescription Recharges,Pharmacy,NHS BUSINESS SERVICES AUTHORITY,1127444,395909.08
Department of Health,University Hospitals of Morecambe Bay NHS Foundation Trust,13-Jan-16,Admin Support BCT,Trust Board,NHS MIDLANDS AND LANCASHIRE CSU,1126329,30450
Department of Health,University Hospitals of Morecambe Bay NHS Foundation Trust,13-Jan-16,NHS Product Sales,Trust Wide,NHS SUPPLY CHAIN,1129942,56685.3
Department of Health,University Hospitals of Morecambe Bay NHS Foundation Trust,13-Jan-16,NHS Product Sales,Trust Wide,NHS SUPPLY CHAIN,1130758,57896.32
Department of Health,University Hospitals of Morecambe Bay NHS Foundation Trust,13-Jan-16,Drugs,Pharmacy,NOVARTIS PHARMACEUTICALS UK LTD,1126983,37432.22
Department of Health,University Hospitals of Morecambe Bay NHS Foundation Trust,13-Jan-16,Drugs,Pharmacy,NOVARTIS PHARMACEUTICALS UK LTD,1127635,33056.64
Department of Health,University Hospitals of Morecambe Bay NHS Foundation Trust,13-Jan-16,Medical Equipment,Theatres,PARITY MEDICAL,1126541,30266.4
Department of Health,University Hospitals of Morecambe Bay NHS Foundation Trust,13-Jan-16,Maintenance Contract,Radiology,PHILIPS HEALTHCARE,1131273,24593
Department of Health,University Hospitals of Morecambe Bay NHS Foundation Trust,13-Jan-16,Drugs,Pharmacy,ROCHE PRODUCTS LTD,1125900,44735.56
Department of Health,University Hospitals of Morecambe Bay NHS Foundation Trust,13-Jan-16,Drugs,Pharmacy,ROCHE PRODUCTS LTD,1125895,38383.74
Department of Health,University Hospitals of Morecambe Bay NHS Foundation Trust,13-Jan-16,Drugs,Pharmacy,ROCHE PRODUCTS LTD,1125896,25799.4
Department of Health,University Hospitals of Morecambe Bay NHS Foundation Trust,13-Jan-16,Drugs,Pharmacy,ROCHE PRODUCTS LTD,1125898,40259.69
Department of Health,University Hospitals of Morecambe Bay NHS Foundation Trust,13-Jan-16,Waiting List (Additional Capacity),Surgery,SPIRE HEALTHCARE LTD,1129130,41005.74
Department of Health,University Hospitals of Morecambe Bay NHS Foundation Trust,13-Jan-16,Medical Equipment,Theatres,STRYKER UK LIMITED,1127378,60561.31
Department of Health,University Hospitals of Morecambe Bay NHS Foundation Trust,13-Jan-16,Recharge Specialist Registrars,Trust Wide,THE PENNINE ACUTE HOSPITALS NHS TRUST,1130705,25000
Department of Health,University Hospitals of Morecambe Bay NHS Foundation Trust,13-Jan-16,Recharge Specialist Registrars,Trust Wide,THE PENNINE ACUTE HOSPITALS NHS TRUST,1130708,70000
Department of Health,University Hospitals of Morecambe Bay NHS Foundation Trust,13-Jan-16,Recharge Specialist Registrars,Trust Wide,THE PENNINE ACUTE HOSPITALS NHS TRUST,1130712,80000
Department of Health,University Hospitals of Morecambe Bay NHS Foundation Trust,13-Jan-16,Recharge Specialist Registrars,Trust Wide,THE PENNINE ACUTE HOSPITALS NHS TRUST,1130713,280000
Department of Health,University Hospitals of Morecambe Bay NHS Foundation Trust,13-Jan-16,Building Services,Capital Services,WALTER CAREFOOT & SONS (CONS) LTD,1132180,213433.41
Department of Health,University Hospitals of Morecambe Bay NHS Foundation Trust,20-Jan-16,Beds Managed Contract,Trust Wide,ARJO HUNTLEIGH LTD,1128898,44668.11
Department of Health,University Hospitals of Morecambe Bay NHS Foundation Trust,20-Jan-16,Laundry,Estates & Facilities,BERENDSEN UK LTD,1132250,31273.31
Department of Health,University Hospitals of Morecambe Bay NHS Foundation Trust,20-Jan-16,Laundry,Estates & Facilities,BERENDSEN UK LTD,1132255,44314.19
Department of Health,University Hospitals of Morecambe Bay NHS Foundation Trust,20-Jan-16,Waiting List (Additional Capacity),Surgery,BMI HEALTHCARE LTD,1128615,92570.59
Department of Health,University Hospitals of Morecambe Bay NHS Foundation Trust,20-Jan-16,Orthotics Service,Trust Wide,CRISPIN ORTHOTICS LTD,1130230,28205.12
Department of Health,University Hospitals of Morecambe Bay NHS Foundation Trust,20-Jan-16,Medical Equipment,Audiology,GN OBTOMETRICS,1129157,39170.58
Department of Health,University Hospitals of Morecambe Bay NHS Foundation Trust,20-Jan-16,Medical Equipment,Audiology,GN OBTOMETRICS,1129302,32905.45
Department of Health,University Hospitals of Morecambe Bay NHS Foundation Trust,20-Jan-16,Agency Midwives,Womens & Childrens,HB RETINUE LTD,1134783,46640.29
Department of Health,University Hospitals of Morecambe Bay NHS Foundation Trust,20-Jan-16,Agency ODPs,Theatres,HB RETINUE LTD,1134784,25282.07
Department of Health,University Hospitals of Morecambe Bay NHS Foundation Trust,20-Jan-16,Medical Equipment,Theatres,MAQUET LTD,1129064,56803.03
Department of Health,University Hospitals of Morecambe Bay NHS Foundation Trust,20-Jan-16,CNST Premium,Corporate,NHS LITIGATION AUTHORITY,1132832,791432.4
Department of Health,University Hospitals of Morecambe Bay NHS Foundation Trust,20-Jan-16,Payroll Services,Trust Wide,NHS SHARED BUSINESS SERVICE LTD,1134962,23622
Department of Health,University Hospitals of Morecambe Bay NHS Foundation Trust,20-Jan-16,NHS Product Sales,Trust Wide,NHS SUPPLY CHAIN,1132603,120975.14
Department of Health,University Hospitals of Morecambe Bay NHS Foundation Trust,20-Jan-16,Drugs,Pharmacy,NOVARTIS PHARMACEUTICALS UK LTD,1127862,41675.59
Department of Health,University Hospitals of Morecambe Bay NHS Foundation Trust,20-Jan-16,Electricity,Estates & Facilities,NPOWER,1134097,60216.25
Department of Health,University Hospitals of Morecambe Bay NHS Foundation Trust,20-Jan-16,Electricity,Estates & Facilities,NPOWER,1134098,28486.41
Department of Health,University Hospitals of Morecambe Bay NHS Foundation Trust,20-Jan-16,Electricity,Estates & Facilities,NPOWER,1134099,63102.94
Department of Health,University Hospitals of Morecambe Bay NHS Foundation Trust,27-Jan-16,Blood Products,Pathology,ALLIANCE HEALTHCARE,1129792,34560
Department of Health,University Hospitals of Morecambe Bay NHS Foundation Trust,27-Jan-16,Blood Products,Pathology,ALLIANCE HEALTHCARE,1130717,40320
Department of Health,University Hospitals of Morecambe Bay NHS Foundation Trust,27-Jan-16,MRI Scans (Mobile Unit),Radiology,ALLIANCE MEDICAL LTD,1132183,46449
Department of Health,University Hospitals of Morecambe Bay NHS Foundation Trust,27-Jan-16,Drugs,Pharmacy,BIOTEST UK LTD,1131118,32550
Department of Health,University Hospitals of Morecambe Bay NHS Foundation Trust,27-Jan-16,Rates,Estates & Facilities,BOROUGH OF BARROW-IN-FURNESS,1136521,56284
Department of Health,University Hospitals of Morecambe Bay NHS Foundation Trust,27-Jan-16,Agency Medical Staff - Management Costs,Trust Wide,HB RETINUE LTD,1132794,55594.66
Department of Health,University Hospitals of Morecambe Bay NHS Foundation Trust,27-Jan-16,Agency Midwives,Womens & Childrens,HB RETINUE LTD,1135188,37381.14
Department of Health,University Hospitals of Morecambe Bay NHS Foundation Trust,27-Jan-16,Agency ODPs,Theatres,HB RETINUE LTD,1135189,31477.75
Department of Health,University Hospitals of Morecambe Bay NHS Foundation Trust,27-Jan-16,Drugs,Pharmacy,JANSSEN-CILAG LTD,1131172,55188
Department of Health,University Hospitals of Morecambe Bay NHS Foundation Trust,27-Jan-16,Rates,Estates & Facilities,LANCASTER CITY COUNCIL,1136516,46424
Department of Health,University Hospitals of Morecambe Bay NHS Foundation Trust,27-Jan-16,Medical Equipment,Radiology,NHS SUPPLY CHAIN,1136675,815746.98
Department of Health,University Hospitals of Morecambe Bay NHS Foundation Trust,27-Jan-16,Drugs,Pharmacy,NOVARTIS PHARMACEUTICALS UK LTD,1131168,38076.23
Department of Health,University Hospitals of Morecambe Bay NHS Foundation Trust,27-Jan-16,Rates,Estates & Facilities,SOUTH LAKELAND DISTRICT COUNCIL,1136522,36359
